bitfinex/quotes_SOLUSD_20240909
["timestamp","ask_amount","ask_price","bid_price","bid_amount"]
[1725877506165,52.6623,130.51,130.44,16.201]
[1725877511049,7.6628,130.5,130.44,16.201]
[1725877511347,45.0,130.49,130.44,16.201]
[1725877514476,45.0,130.5,130.44,16.201]
[1725877515446,45.0,130.5,130.44,23.83579859]
[1725877515652,45.0,130.5,130.45,2.4593711]
[1725877515949,45.0,130.5,130.46,2.4593711]
[1725877516147,45.0,130.5,130.47,2.4593711]
[1725877516462,45.0,130.5,130.44,23.83579859]
[1725877516662,45.0,130.5,130.45,2.4593711]
[1725877516862,45.0,130.5,130.46,2.4593711]
[1725877517175,45.0,130.5,130.44,23.83579859]
[1725877517176,45.0,130.5,130.47,2.4593711]
[1725877517369,45.0,130.5,130.44,16.201]
[1725877517954,45.0,130.5,130.45,2.45950657]
[1725877518157,45.0,130.5,130.46,2.45950657]
[1725877518360,45.0,130.5,130.44,16.201]
[1725877518580,45.0,130.5,130.45,2.4595037]
[1725877518763,45.0,130.5,130.46,2.4595037]
[1725877518955,45.0,130.5,130.44,16.201]
[1725877519157,45.0,130.5,130.45,2.4595044]
[1725877519355,45.0,130.5,130.46,2.4595044]
[1725877519659,45.0,130.5,130.44,16.201]
[1725877519860,45.0,130.5,130.45,2.4595037]
[1725877520066,45.0,130.5,130.46,2.4595037]
[1725877520270,45.0,130.5,130.44,16.201]
[1725877520576,45.0,130.5,130.45,2.4595044]
[1725877520749,45.0,130.5,130.44,16.201]
[1725877521080,45.0,130.5,130.46,2.45950405]
[1725877521770,45.0,130.5,130.44,16.201]
[1725877522072,45.0,130.5,130.45,2.4595037]
[1725877522262,45.0,130.5,130.46,2.4595037]
[1725877522466,45.0,130.5,130.44,16.201]
[1725877522666,45.0,130.5,130.45,2.45950771]
[1725877522864,45.0,130.5,130.46,2.45950771]
[1725877523070,45.0,130.5,130.44,16.201]
[1725877523260,45.0,130.5,130.45,2.4595044]
[1725877523457,52.663,130.5,130.46,2.4595044]
[1725877523770,52.663,130.5,130.44,16.201]
[1725877524252,7.6639,130.49,130.45,2.4595044]
[1725877524561,7.6639,130.49,130.43,7.6380451]
[1725877524562,7.6659,130.45,130.43,7.6380451]
[1725877524874,45.0,130.44,130.38,39.94616535]
[1725877525087,45.0,130.44,130.39,2.4604872]
[1725877525383,7.6669,130.43,130.38,16.4685]
[1725877525591,52.6664,130.44,130.38,32.30812025]
[1725877525881,52.6664,130.44,130.39,2.46065942]
[1725877526101,52.6664,130.44,130.38,32.30812025]
[1725877526384,45.0,130.44,130.39,2.46061865]
[1725877526578,45.0,130.44,130.38,32.30812025]
[1725877526783,45.0,130.45,130.38,32.30812025]
[1725877531204,52.6662,130.45,130.38,16.4685]
[1725877531668,52.6662,130.45,130.38,32.30812025]
[1725877531868,7.6664,130.44,130.38,16.4685]
[1725877532075,45.0,130.43,130.38,16.4685]
[1725877533577,45.0,130.44,130.38,16.4685]
[1725877535567,42.2623,130.51,130.41,15.83962025]
[1725877536286,7.6644,130.48,130.4,6.5865]
[1725877536461,50.0,130.49,130.4,6.5865]
[1725877537375,7.6647,130.47,130.4,6.5865]
[1725877537881,45.0,130.46,130.4,6.5865]
[1725877538259,45.0,130.47,130.41,15.83962025]
[1725877540385,45.0,130.47,130.43,15.83962025]
[1725877540586,45.0,130.48,130.43,15.83962025]
[1725877540891,45.0,130.49,130.43,15.83962025]
[1725877541182,52.6635,130.49,130.43,15.83962025]
[1725877546173,7.664,130.48,130.42,16.3596]
[1725877546366,45.0,130.47,130.42,32.19922025]
[1725877546986,45.0,130.48,130.42,32.19922025]
[1725877547375,52.664,130.48,130.42,32.19922025]
[1725877550689,7.6646,130.47,130.42,16.3596]
[1725877550892,45.0,130.46,130.42,16.3596]
[1725877553683,7.663,130.5,130.42,16.3596]
[1725877554196,7.6635,130.49,130.42,16.3596]
[1725877554988,45.0,130.48,130.42,16.3596]
[1725877555814,45.0,130.48,130.43,15.83962025]
[1725877556101,7.6627,130.51,130.43,15.83962025]
[1725877556311,7.6628,130.5,130.43,15.83962025]
[1725877557202,57.4517,130.55,130.47,15.83962025]
[1725877557203,3.04374201,130.55,130.47,15.83962025]
[1725877557383,7.6605,130.54,130.47,15.83962025]
[1725877559011,45.0,130.53,130.47,15.83962025]
[1725877560396,52.6612,130.53,130.47,15.83962025]
[1725877561786,52.6612,130.53,130.44,21.5378]
[1725877561989,7.6626,130.51,130.44,21.5378]
[1725877562313,7.6626,130.51,130.44,37.37742025]
[1725877562314,45.0,130.5,130.44,37.37742025]
[1725877562516,52.6628,130.5,130.44,37.37742025]
[1725877562805,52.6628,130.5,130.44,21.5378]
[1725877565610,7.6635,130.49,130.44,21.5378]
[1725877565795,45.0,130.48,130.44,21.5378]
[1725877566310,45.0,130.49,130.44,21.5378]
[1725877567609,45.0,130.49,130.44,37.37742025]
[1725877572106,45.0,130.49,130.44,21.5378]
[1725877572306,7.664,130.48,130.44,21.5378]
[1725877572594,45.0,130.47,130.44,21.5378]
[1725877572802,45.0,130.49,130.44,21.5378]
[1725877573008,50.0,130.51,130.44,21.5378]
[1725877573009,45.0,130.5,130.44,21.5378]
[1725877573393,7.6635,130.49,130.44,21.5378]
[1725877573710,45.0,130.48,130.44,21.5378]
[1725877575415,45.0,130.49,130.44,21.5378]
[1725877575797,52.6635,130.49,130.44,21.5378]
[1725877577495,45.0,130.49,130.44,21.5378]
[1725877591619,45.0,130.5,130.44,21.5378]
[1725877595510,7.6624,130.51,130.44,21.5378]
[1725877596304,50.0,130.56,130.48,16.6124]
[1725877596513,52.98491697,130.56,130.48,16.6124]
[1725877596912,7.6611,130.53,130.48,16.6124]
[1725877597316,7.6611,130.53,130.49,4.28952467]
[1725877597613,7.6611,130.53,130.48,16.6124]
[1725877597821,45.0,130.52,130.49,4.28960823]
[1725877598016,45.0,130.52,130.48,16.6124]
[1725877598330,45.0,130.52,130.49,4.28952467]
[1725877598505,45.0,130.52,130.48,16.6124]
[1725877598706,45.0,130.52,130.49,4.28960911]
[1725877599029,45.0,130.52,130.48,16.6124]
[1725877599233,45.0,130.52,130.49,4.28960823]
[1725877599533,45.0,130.52,130.48,16.6124]
[1725877604348,66.10724022,130.57,130.42,3.08690036]
[1725877604349,41.13995462,130.57,130.52,16.2763]
[1725877604571,312.0,130.64,130.57,16.2763]
[1725877604572,0.8449741,130.6,130.57,16.2763]
[1725877604832,0.8449741,130.6,130.59,15.83962025]
[1725877605215,0.8449741,130.6,130.58,6.154]
[1725877605412,0.8449741,130.6,130.59,15.83962025]
[1725877606132,0.8449741,130.6,130.57,16.2763]
[1725877606732,0.8449741,130.6,130.53,16.2763]
[1725877606934,53.5018741,130.6,130.53,16.2763]
[1725877607317,45.8449741,130.6,130.53,16.2763]
[1725877611842,53.5018741,130.6,130.53,16.2763]
[1725877616146,7.6582,130.58,130.53,16.2763]
[1725877616337,45.0,130.57,130.53,16.2763]
[1725877616733,45.0,130.58,130.53,16.2763]
[1725877617572,45.0,130.59,130.53,16.2763]
[1725877620443,52.6579,130.59,130.53,16.2763]
[1725877620744,95.0,130.59,130.51,6.2866]
[1725877622344,7.6585,130.58,130.51,6.2866]
[1725877622540,45.0,130.57,130.51,6.2866]
[1725877623551,0.8449741,130.6,130.51,22.12622025]
[1725877623756,8.5019741,130.6,130.51,22.12622025]
[1725877624328,8.5019741,130.6,130.53,15.83962025]
[1725877624329,0.8449741,130.6,130.53,15.83962025]
[1725877624841,0.8449741,130.6,130.55,15.83962025]
[1725877625223,0.8449741,130.6,130.54,15.1866]
[1725877626257,45.8449741,130.6,130.54,15.1866]
[1725877627138,0.8449741,130.6,130.54,15.1866]
[1725877629430,0.8449741,130.6,130.54,31.02622025]
[1725877632842,0.8449741,130.6,130.56,22.21402025]
[1725877634259,0.8449741,130.6,130.59,15.8407]
[1725877642875,0.8449741,130.6,130.56,22.21402025]
[1725877643170,0.8449741,130.6,130.55,16.5871]
[1725877643542,8.5022741,130.6,130.55,16.5871]
[1725877643844,45.0,130.59,130.55,16.5871]
[1725877644463,45.8449741,130.6,130.55,16.5871]
[1725877650576,53.5019741,130.6,130.55,16.5871]
[1725877651562,45.8449741,130.6,130.53,22.44632025]
[1725877651765,0.8449741,130.6,130.53,22.44632025]
[1725877656463,0.8449741,130.6,130.56,15.4473]
[1725877658174,0.8449741,130.6,130.57,15.83962025]
[1725877661287,0.8449741,130.6,130.59,15.83962025]
[1725877661448,0.8449741,130.6,130.59,20.12417326]
[1725877661851,0.8449741,130.6,130.59,4.28455301]
[1725877663348,0.8449741,130.6,130.59,20.58055301]
[1725877664358,0.8449741,130.6,130.59,16.296]
[1725877664550,0.8449741,130.6,130.59,40.57943883]
[1725877665384,258.9,130.69,130.59,40.57943883]
[1725877665582,6.3704,130.71,130.63,15.83962025]
[1725877666284,14.021,130.71,130.65,15.83962025]
[1725877666577,73.561,130.72,130.65,15.83962025]
[1725877667172,65.911,130.72,130.65,15.83962025]
[1725877667360,15.911,130.72,130.65,15.83962025]
[1725877667755,23.5613,130.72,130.65,15.83962025]
[1725877667972,65.911,130.72,130.63,6.4324]
[1725877668257,65.911,130.72,130.63,22.27202025]
[1725877668667,45.0,130.71,130.63,22.27202025]
[1725877669267,7.6515,130.7,130.63,22.27202025]
[1725877669465,45.0,130.69,130.63,22.27202025]
[1725877675866,45.0,130.7,130.63,22.27202025]
[1725877676194,7.6507,130.71,130.63,22.27202025]
[1725877676365,7.6507,130.71,130.64,16.195]
[1725877677168,7.6507,130.71,130.65,15.83962025]
[1725877677687,45.0,130.7,130.65,15.83962025]
[1725877679280,45.0,130.71,130.65,15.83962025]
[1725877679471,52.6506,130.71,130.65,15.83962025]
[1725877680274,45.0,130.71,130.64,16.195]
[1725877680598,7.6515,130.7,130.64,16.195]
[1725877680887,45.0,130.69,130.64,16.195]
[1725877681067,52.6517,130.69,130.64,16.195]
[1725877683393,45.0,130.69,130.62,15.2198]
[1725877684603,50.0,130.68,130.6,6.5714]
[1725877684784,45.0,130.69,130.59,15.2198]
[1725877684785,65.6397,130.66,130.59,15.2198]
[1725877684988,45.0,130.65,130.56,21.7912]
[1725877685774,7.6558,130.62,130.56,21.7912]
[1725877686087,45.0,130.61,130.56,21.7912]
[1725877686888,45.0,130.62,130.56,21.7912]
[1725877687686,45.0,130.63,130.56,21.7912]
[1725877688790,45.0,130.63,130.56,61.31388515]
[1725877688970,7.6542,130.65,130.56,61.31388515]
[1725877690263,7.6535,130.66,130.56,61.31388515]
[1725877690595,19.13,130.69,130.57,20.0]
[1725877690795,45.0,130.68,130.58,15.2198]
[1725877690964,45.0,130.68,130.58,54.74248515]
[1725877691161,25.31147779,130.7,130.58,54.74248515]
[1725877691362,7.6528,130.67,130.59,6.5714]
[1725877691699,7.6524,130.68,130.59,6.5714]
[1725877692492,7.653,130.67,130.59,6.5714]
[1725877692989,45.0,130.66,130.59,6.5714]
[1725877693564,45.0,130.66,130.6,16.4761]
[1725877693806,7.6522,130.68,130.6,16.4761]
[1725877694171,7.6528,130.67,130.6,16.4761]
[1725877695264,45.0,130.66,130.6,16.4761]
[1725877695464,88.17892299,130.72,130.6,16.4761]
[1725877695770,20.0,130.71,130.6,55.99878515]
[1725877696894,45.0,130.7,130.6,55.99878515]
[1725877697273,7.6518,130.69,130.6,55.99878515]
[1725877697595,45.0,130.68,130.6,55.99878515]
[1725877697800,45.0,130.68,130.6,16.4761]
[1725877697997,52.6523,130.68,130.6,16.4761]
[1725877701705,45.0,130.68,130.6,16.4761]
[1725877702077,45.0,130.68,130.6,55.99878515]
[1725877705484,52.6523,130.68,130.6,16.4761]
[1725877706583,7.6529,130.67,130.6,16.4761]
[1725877706796,45.0,130.66,130.6,16.4761]
[1725877710696,7.6518,130.69,130.61,15.79480431]
[1725877711486,7.6518,130.69,130.62,16.3703]
[1725877712407,45.0,130.68,130.62,16.3703]
[1725877713011,7.6514,130.7,130.63,6.254]
[1725877714393,45.0,130.69,130.63,6.254]
[1725877714619,0.8449741,130.73,130.64,55.5238731]
[1725877715002,8.4944741,130.73,130.64,55.5238731]
[1725877715916,0.8449741,130.73,130.64,55.5238731]
[1725877716987,8.4942741,130.73,130.64,55.5238731]
[1725877717521,8.4942741,130.73,130.64,16.0512]
[1725877717522,52.65,130.72,130.64,16.0512]
[1725877718714,45.0,130.72,130.64,16.0512]
[1725877719597,52.6502,130.72,130.64,16.0512]
[1725877721101,45.0,130.72,130.64,16.0512]
[1725877721606,52.6501,130.72,130.64,16.0512]
[1725877721807,45.0,130.72,130.64,16.0512]
[1725877722321,45.0,130.72,130.65,16.3048]
[1725877723124,0.8449741,130.73,130.65,16.3048]
[1725877723125,0.8449741,130.73,130.66,6.1683]
[1725877723296,8.4942741,130.73,130.66,6.1683]
[1725877724426,45.0,130.72,130.66,6.1683]
[1725877724796,45.0,130.72,130.67,15.224]
[1725877725001,0.8449741,130.73,130.67,15.224]
[1725877729207,0.8449741,130.73,130.68,45.8964731]
[1725877729412,0.8449741,130.73,130.69,16.1511]
[1725877731214,0.8449741,130.73,130.7,6.2708]
[1725877734121,0.8449741,130.73,130.7,22.03842225]
[1725877735223,0.8449741,130.73,130.7,6.2708]
[1725877737026,0.8449741,130.73,130.7,22.03842225]
[1725877737228,0.8449741,130.73,130.7,6.2708]
[1725877738220,0.8449741,130.73,130.69,16.1511]
[1725877742525,0.8449741,130.73,130.69,31.91872225]
[1725877743934,0.8449741,130.73,130.69,16.1511]
[1725877744641,0.8449741,130.73,130.66,15.0797]
[1725877744935,7.6504,130.72,130.66,15.0797]
[1725877745116,45.0,130.71,130.66,15.0797]
[1725877745323,8.4943741,130.73,130.66,15.0797]
[1725877745527,45.0,130.71,130.66,15.0797]
[1725877746038,8.4943741,130.73,130.66,15.0797]
[1725877746227,45.0,130.72,130.66,15.0797]
[1725877747842,52.6499,130.72,130.66,15.0797]
[1725877748136,45.0,130.72,130.66,15.0797]
[1725877752139,52.6499,130.72,130.66,15.0797]
[1725877755642,45.0,130.72,130.66,15.0797]
[1725877759542,0.8449741,130.73,130.66,30.84732225]
[1725877762645,0.8449741,130.73,130.66,15.76762225]
[1725877762948,0.8449741,130.73,130.68,15.76762225]
[1725877765336,0.8449741,130.73,130.67,21.3027]
[1725877765756,7.65,130.72,130.67,21.3027]
[1725877766050,45.0,130.71,130.67,21.3027]
[1725877766435,45.0,130.71,130.63,15.8248]
[1725877766636,45.0,130.72,130.65,2.4555691]
[1725877767261,7.6515,130.7,130.65,2.4555691]
[1725877767436,50.8449741,130.73,130.65,2.4555691]
[1725877767437,45.0,130.69,130.65,2.4555691]
[1725877767635,7.6507,130.71,130.65,2.4555691]
[1725877767847,45.0,130.7,130.65,2.4555691]
[1725877770759,7.6501,130.72,130.65,2.4555691]
[1725877773064,7.6499,130.72,130.65,2.4555691]
[1725877773864,8.4946741,130.73,130.65,2.4555691]
[1725877774043,45.0,130.72,130.65,2.4555691]
[1725877774669,52.65,130.72,130.63,57.73932057]
[1725877774853,52.65,130.72,130.63,55.28340659]
[1725877775160,7.6506,130.71,130.63,57.73932057]
[1725877775339,45.0,130.7,130.63,55.28340659]
[1725877776157,7.6501,130.72,130.63,55.28340659]
[1725877777241,7.6505,130.71,130.63,57.73929242]
[1725877777758,7.6505,130.71,130.63,55.28340659]
[1725877778745,7.6501,130.72,130.63,55.28340659]
[1725877778952,45.0,130.71,130.63,55.28340659]
[1725877779577,45.0,130.71,130.63,57.73932481]
[1725877780661,8.4944741,130.73,130.65,45.73400659]
[1725877780961,8.4944741,130.73,130.66,16.0833]
[1725877786748,0.8449741,130.73,130.66,16.0833]
[1725877790077,0.8449741,130.73,130.67,15.77706551]
[1725877791676,0.8449741,130.73,130.66,16.0833]
[1725877791867,0.8449741,130.73,130.62,21.5328]
[1725877791868,95.8449741,130.73,130.62,21.5328]
[1725877792068,7.6517,130.69,130.62,21.5328]
[1725877792269,95.8449741,130.73,130.62,15.0337]
[1725877792270,7.6541,130.65,130.62,15.0337]
[1725877792470,7.6546,130.64,130.59,6.2692]
[1725877792689,22.1414,130.7,130.55,21.3029]
[1725877792690,50.0,130.67,130.55,21.3029]
[1725877792863,69.1357,130.65,130.55,21.3029]
[1725877793068,7.6588,130.57,130.52,6.2692]
[1725877793257,6.5495,130.62,130.51,15.0337]
[1725877793258,7.6593,130.56,130.51,15.0337]
[1725877793470,6.5495,130.62,130.51,15.0337]
[1725877793471,6.5495,130.62,130.52,15.77706551]
[1725877793662,45.0,130.61,130.54,15.77706551]
[1725877794190,45.0,130.62,130.53,39.51654473]
[1725877794684,52.6558,130.62,130.53,39.51654473]
[1725877794975,52.6558,130.62,130.51,54.55024473]
[1725877794976,7.6566,130.61,130.51,54.55024473]
[1725877795183,45.0,130.6,130.51,54.55024473]
[1725877795359,45.0,130.6,130.51,15.0337]
[1725877795566,45.0,130.6,130.51,54.55024473]
[1725877797793,45.0,130.6,130.52,4.28608356]
[1725877798159,45.0,130.6,130.51,54.55024473]
[1725877800383,45.0,130.6,130.51,15.0337]
[1725877801185,7.6575,130.59,130.51,15.0337]
[1725877801375,45.0,130.58,130.51,15.0337]
[1725877802180,52.6577,130.59,130.51,15.0337]
[1725877802691,45.0,130.59,130.51,15.0337]
[1725877802982,39.1373,130.64,130.51,54.55024473]
[1725877803284,33.31710234,130.63,130.55,39.51654473]
[1725877803863,33.31710234,130.63,130.57,39.51654473]
[1725877805262,33.31710234,130.63,130.55,39.51654473]
[1725877805964,33.31710234,130.63,130.51,15.0337]
[1725877805965,7.657,130.6,130.51,21.3891]
[1725877806598,45.0,130.59,130.51,21.3891]
[1725877807090,45.0,130.59,130.52,39.51654473]
[1725877807286,45.0,130.6,130.52,39.51654473]
[1725877807589,7.6559,130.62,130.52,39.51654473]
[1725877807590,45.0,130.61,130.52,39.51654473]
[1725877811682,45.0,130.62,130.52,39.51654473]
[1725877812981,7.6553,130.63,130.52,39.51654473]
[1725877813386,7.6558,130.62,130.52,39.51654473]
[1725877813870,7.6554,130.63,130.52,39.51654473]
[1725877814194,7.6561,130.62,130.52,39.51654473]
[1725877814394,45.0,130.61,130.52,39.51654473]
[1725877815589,45.0,130.61,130.54,39.51654473]
[1725877816174,7.6551,130.64,130.54,39.51654473]
[1725877816390,45.0,130.63,130.54,39.51654473]
[1725877818200,7.6571,130.6,130.51,21.3891]
[1725877818379,45.0,130.59,130.52,20.0]
[1725877819705,52.56500393,130.63,130.52,20.0]
[1725877819706,52.657,130.6,130.52,20.0]
[1725877821487,45.0,130.6,130.52,20.0]
[1725877821674,45.0,130.61,130.52,20.0]
[1725877821992,7.6558,130.62,130.52,20.0]
[1725877823405,45.0,130.61,130.52,20.0]
[1725877824383,45.0,130.62,130.52,20.0]
[1725877825982,45.0,130.62,130.53,39.51654473]
[1725877826290,52.56500393,130.64,130.57,39.51654473]
[1725877827995,52.56500393,130.64,130.56,6.4553]
[1725877828301,52.56500393,130.64,130.56,45.97184473]
[1725877828485,45.0,130.63,130.56,6.4553]
[1725877829491,84.79500393,130.62,130.56,6.4553]
[1725877829702,84.79500393,130.62,130.54,15.7965]
[1725877830006,7.6571,130.6,130.54,15.7965]
[1725877830217,45.0,130.59,130.54,15.7965]
[1725877832409,45.0,130.6,130.54,15.7965]
[1725877832814,7.6575,130.59,130.54,15.7965]
[1725877832986,127.33030393,130.58,130.51,16.0657]
[1725877833304,82.33030393,130.58,130.51,16.0657]
[1725877833514,45.0,130.57,130.51,16.0657]
[1725877836907,45.0,130.58,130.51,16.0657]
[1725877837428,52.6584,130.58,130.51,16.0657]
[1725877838330,7.6589,130.57,130.51,16.0657]
[1725877838623,52.6583,130.58,130.51,16.0657]
[1725877839135,45.0,130.58,130.51,16.0657]
[1725877840708,112.45860393,130.59,130.51,16.0657]
[1725877841416,104.80100393,130.59,130.51,16.0657]
[1725877842432,104.80100393,130.59,130.48,15.4689]
[1725877842433,154.80100393,130.59,130.48,15.4689]
[1725877842604,7.6589,130.57,130.48,15.4689]
[1725877842804,45.0,130.56,130.48,15.4689]
[1725877843218,59.80100393,130.59,130.5,6.2836]
[1725877843511,45.0,130.58,130.5,6.2836]
[1725877844013,45.0,130.58,130.51,15.4689]
[1725877846322,7.6588,130.57,130.51,15.4689]
[1725877846535,45.0,130.56,130.51,15.4689]
[1725877848928,90.01600393,130.56,130.48,16.6075]
[1725877849239,44.90088499,130.55,130.48,16.6075]
[1725877849435,45.0,130.54,130.48,16.6075]
[1725877850410,52.6605,130.54,130.48,16.6075]
[1725877851433,44.78088499,130.53,130.48,16.6075]
[1725877852138,89.78088499,130.54,130.48,16.6075]
[1725877853241,97.44168499,130.54,130.48,16.6075]
[1725877854533,43.28088499,130.53,130.48,16.6075]
[1725877861742,43.28088499,130.53,130.48,56.12404473]
[1725877863122,43.28088499,130.53,130.49,20.0]
[1725877864329,21.17311284,130.58,130.49,20.0]
[1725877864646,45.0,130.57,130.49,20.0]
[1725877866129,45.0,130.57,130.5,39.51654473]
[1725877866327,21.17311284,130.58,130.5,39.51654473]
[1725877870239,21.17311284,130.58,130.5,15.81718756]
[1725877871647,21.17311284,130.58,130.53,16.6292]
[1725877871839,21.17311284,130.58,130.53,23.2501]
[1725877873153,21.17311284,130.58,130.5,19.10328107]
[1725877873341,7.6589,130.57,130.5,16.6451]
[1725877873532,52.6589,130.57,130.5,16.6451]
[1725877874184,74.76101531,130.57,130.5,16.6451]
[1725877874362,67.10211531,130.57,130.5,16.6451]
[1725877874652,74.76121531,130.57,130.5,16.6451]
[1725877875960,74.76121531,130.57,130.47,16.0648]
[1725877875961,73.29391531,130.57,130.47,16.0648]
[1725877877252,7.6599,130.55,130.47,16.0648]
[1725877877451,45.0,130.54,130.47,16.0648]
[1725877879442,28.29391531,130.57,130.5,15.81718756]
[1725877879651,28.29391531,130.57,130.47,16.0648]
[1725877879652,22.10211531,130.57,130.52,15.81718756]
[1725877880056,22.10211531,130.57,130.52,31.63168756]
[1725877881152,22.10211531,130.57,130.54,15.81718756]
[1725877882242,22.10211531,130.57,130.52,61.43482306]
[1725877883645,22.10211531,130.57,130.49,22.2172]
[1725877883859,45.0,130.56,130.5,20.0]
[1725877886550,45.0,130.56,130.49,22.2172]
[1725877886551,45.0,130.56,130.49,15.8993]
[1725877888466,38.06711531,130.57,130.49,15.8993]
[1725877889961,38.06711531,130.57,130.5,4.28736055]
[1725877890270,38.06711531,130.57,130.49,15.8993]
[1725877890271,38.06711531,130.57,130.51,4.28736055]
[1725877890469,38.06711531,130.57,130.49,15.8993]
[1725877890681,38.06711531,130.57,130.52,4.2873696]
[1725877890856,45.0,130.56,130.49,15.8993]
[1725877891055,45.0,130.56,130.5,4.28770312]
[1725877891356,45.0,130.56,130.51,4.28770312]
[1725877891569,45.0,130.56,130.49,15.8993]
[1725877891778,45.0,130.56,130.5,4.28750981]
[1725877891953,45.0,130.56,130.51,4.28750981]
[1725877892153,45.0,130.56,130.49,15.8993]
[1725877892361,45.0,130.56,130.5,4.28751988]
[1725877892560,45.0,130.56,130.51,4.28751988]
[1725877892874,45.0,130.56,130.49,15.8993]
[1725877893074,45.0,130.56,130.5,4.28754963]
[1725877893272,45.0,130.56,130.51,4.28754963]
[1725877893480,45.0,130.56,130.49,15.8993]
[1725877893780,45.0,130.56,130.5,4.28754786]
[1725877893953,45.0,130.56,130.51,4.28754786]
[1725877894155,45.0,130.56,130.49,15.8993]
[1725877894464,45.0,130.56,130.5,4.28754786]
[1725877894665,45.0,130.56,130.51,4.28754874]
[1725877894872,38.06711531,130.57,130.51,4.28754874]
[1725877895070,38.06711531,130.57,130.52,4.28738078]
[1725877895272,38.06711531,130.57,130.5,39.52832306]
[1725877895474,38.06711531,130.57,130.51,4.28735104]
[1725877895655,38.06711531,130.57,130.52,4.28735104]
[1725877895981,38.06711531,130.57,130.5,39.52832306]
[1725877896183,38.06711531,130.57,130.51,4.28739085]
[1725877896479,38.06711531,130.57,130.5,39.52832306]
[1725877896679,38.06711531,130.57,130.51,4.28741617]
[1725877896967,38.06711531,130.57,130.52,4.28741617]
[1725877897168,38.06711531,130.57,130.5,39.52832306]
[1725877897372,38.06711531,130.57,130.51,4.28749795]
[1725877897573,38.06711531,130.57,130.52,4.28749795]
[1725877897776,38.06711531,130.57,130.5,39.52832306]
[1725877899062,45.0,130.56,130.49,15.8993]
[1725877903271,45.0,130.56,130.48,39.52832306]
[1725877903460,45.0,130.56,130.49,20.0]
[1725877903657,6.2561,130.55,130.49,20.0]
[1725877903860,45.0,130.54,130.46,55.90602306]
[1725877904070,45.0,130.54,130.47,20.0]
[1725877904285,45.0,130.54,130.46,15.82770937]
[1725877907580,16.2812,130.52,130.43,16.3777]
[1725877907788,45.0,130.51,130.44,35.82770937]
[1725877908489,16.2812,130.52,130.44,35.82770937]
[1725877908862,45.0,130.51,130.44,35.82770937]
[1725877909168,45.0,130.51,130.44,20.0]
[1725877912377,16.2812,130.52,130.47,15.82770937]
[1725877912695,21.3968,130.55,130.49,15.82770937]
[1725877919073,7.6605,130.54,130.49,15.82770937]
[1725877919263,21.3968,130.55,130.47,15.82770937]
[1725877919584,29.0569,130.55,130.47,15.82770937]
[1725877920386,45.0,130.54,130.47,15.82770937]
[1725877921092,21.3968,130.55,130.47,15.82770937]
[1725877922190,21.3968,130.55,130.49,15.82770937]
[1725877923988,21.3968,130.55,130.47,15.82770937]
[1725877926724,21.3968,130.55,130.49,15.82770937]
[1725877926900,45.0,130.54,130.44,20.0]
[1725877927188,45.0,130.54,130.45,15.82770937]
[1725877927697,52.6608,130.54,130.45,15.82770937]
[1725877928489,7.6614,130.53,130.45,15.82770937]
[1725877928690,45.0,130.52,130.45,15.82770937]
[1725877930287,7.6614,130.53,130.45,15.82770937]
[1725877931494,29.0572,130.55,130.47,15.82770937]
[1725877931677,45.0,130.54,130.47,15.82770937]
[1725877932296,29.0572,130.55,130.47,15.82770937]
[1725877934797,21.3968,130.55,130.49,15.82770937]
[1725877934998,22.10211531,130.57,130.53,15.82770937]
[1725877938078,22.10211531,130.57,130.52,39.52505695]
[1725877943512,22.10211531,130.57,130.54,39.52505695]
[1725877943809,6.0045,130.64,130.6,39.52505695]